[Event "Titled Tuesday Blitz November 29 Early 2022"]
[White "Gatterer, Florian"]
[Black "Vysochin, Spartak"]
[WhiteFideId "811688"]
[BlackFideId "14103516"]
[WhiteElo "2218"]
[BlackElo "2412"]
[Result "1/2-1/2"]
[Round "04"]
[TimeControl "180+1"]
[Date "2022.11.30"]
[WhiteClock "0:00:45"]
[BlackClock "0:00:17"]

1. c4 {[%clk 0:03:00]}  c6 {[%clk 0:02:59]} 2. Nf3 {[%clk 0:02:54]}  d5 {[%clk 0:03:00]} 3. e3 {[%clk 0:02:55]}  Nf6 {[%clk 0:02:59]} 4. Nc3 {[%clk 0:02:55]}  Bf5 {[%clk 0:02:53]} 5. c5 {[%clk 0:02:53]}  e6 {[%clk 0:02:52]} 6. d4 {[%clk 0:02:53]}  Be7 {[%clk 0:02:46]} 7. h3 {[%clk 0:02:53]}  O-O {[%clk 0:02:43]} 8. Nh4 {[%clk 0:02:53]}  Bg6 {[%clk 0:02:42]} 9. Nxg6 {[%clk 0:02:52]}  hxg6 {[%clk 0:02:43]} 10. f4 {[%clk 0:02:41]}  Nbd7 {[%clk 0:02:43]} 11. Bd2 {[%clk 0:02:34]}  Nh5 {[%clk 0:02:25]} 12. Kf2 {[%clk 0:01:54]}  Bh4+ {[%clk 0:02:14]} 13. Kf3 {[%clk 0:01:54]}  Ng3 {[%clk 0:02:06]} 14. Rg1 {[%clk 0:01:54]}  g5 {[%clk 0:01:57]} 15. Bd3 {[%clk 0:01:51]}  gxf4 {[%clk 0:01:33]} 16. exf4 {[%clk 0:01:51]}  Qf6 {[%clk 0:01:25]} 17. Be3 {[%clk 0:01:51]}  e5 {[%clk 0:01:16]} 18. dxe5 {[%clk 0:00:57]}  Nxe5+ {[%clk 0:01:14]} 19. Kf2 {[%clk 0:00:58]}  Nf5+ {[%clk 0:00:30]} 20. g3 {[%clk 0:00:51]}  Bxg3+ {[%clk 0:00:21]} 21. Rxg3 {[%clk 0:00:51]}  Nxg3 {[%clk 0:00:20]} 22. Kxg3 {[%clk 0:00:52]}  Nxd3 {[%clk 0:00:19]} 23. Qxd3 {[%clk 0:00:51]}  Rad8 {[%clk 0:00:18]} 24. Bd4 {[%clk 0:00:51]}  Qg6+ {[%clk 0:00:17]} 25. Qxg6 {[%clk 0:00:50]}  fxg6 {[%clk 0:00:18]} 26. h4 {[%clk 0:00:45]}  Rf5 {[%clk 0:00:17]} 1/2-1/2


[Site "https://www.chess.com"]

[Event "Titled Tuesday Blitz November 29 Early 2022"]
[White "Gheorghiu, Calin"]
[Black "Foerster-Yialamas, Lucas"]
[WhiteFideId "1200305"]
[BlackFideId "30901774"]
[WhiteElo "2225"]
[BlackElo "2067"]
[Result "1-0"]
[Round "04"]
[TimeControl "180+1"]
[Date "2022.11.30"]
[WhiteClock "0:01:16"]
[BlackClock "0:00:27"]

1. c4 {[%clk 0:03:00]}  g6 {[%clk 0:02:51]} 2. Nc3 {[%clk 0:03:00]}  Nf6 {[%clk 0:02:49]} 3. e4 {[%clk 0:02:59]}  e5 {[%clk 0:02:48]} 4. d3 {[%clk 0:02:56]}  Bc5 {[%clk 0:02:46]} 5. Be3 {[%clk 0:02:52]}  Bxe3 {[%clk 0:02:42]} 6. fxe3 {[%clk 0:02:52]}  d6 {[%clk 0:02:43]} 7. Be2 {[%clk 0:02:49]}  h5 {[%clk 0:02:43]} 8. Qd2 {[%clk 0:02:47]}  Ng4 {[%clk 0:02:42]} 9. Nf3 {[%clk 0:02:45]}  Nc6 {[%clk 0:02:39]} 10. h3 {[%clk 0:02:43]}  Nf6 {[%clk 0:02:37]} 11. O-O-O {[%clk 0:02:42]}  a6 {[%clk 0:02:35]} 12. Rhf1 {[%clk 0:02:42]}  Qe7 {[%clk 0:02:34]} 13. d4 {[%clk 0:02:38]}  exd4 {[%clk 0:02:26]} 14. exd4 {[%clk 0:02:36]}  Bd7 {[%clk 0:02:04]} 15. Nd5 {[%clk 0:02:21]}  Nxd5 {[%clk 0:02:00]} 16. exd5 {[%clk 0:02:21]}  Na7 {[%clk 0:02:01]} 17. Bd3 {[%clk 0:02:16]}  O-O-O {[%clk 0:02:01]} 18. Rde1 {[%clk 0:02:16]}  Qf6 {[%clk 0:01:51]} 19. Ne5 {[%clk 0:02:12]}  Qxf1 {[%clk 0:01:50]} 20. Rxf1 {[%clk 0:02:11]}  dxe5 {[%clk 0:01:51]} 21. dxe5 {[%clk 0:02:12]}  Rhf8 {[%clk 0:01:49]} 22. Qb4 {[%clk 0:01:59]}  Kb8 {[%clk 0:01:36]} 23. e6 {[%clk 0:01:42]}  Bxe6 {[%clk 0:01:32]} 24. dxe6 {[%clk 0:01:41]}  Nc6 {[%clk 0:01:32]} 25. Qc5 {[%clk 0:01:35]}  Rh8 {[%clk 0:01:04]} 26. exf7 {[%clk 0:01:29]}  Rhf8 {[%clk 0:01:00]} 27. Bxg6 {[%clk 0:01:28]}  Rd6 {[%clk 0:00:53]} 28. Re1 {[%clk 0:01:24]}  b6 {[%clk 0:00:37]} 29. Re8+ {[%clk 0:01:21]}  Nd8 {[%clk 0:00:27]} 30. Qxd6 {[%clk 0:01:16]}  cxd6 {[%clk 0:00:26]} 31. Rxf8 {[%clk 0:01:16]}  Kc7 {[%clk 0:00:27]} 32. Rxd8 {[%clk 0:01:16]} 1-0


[Site "https://www.chess.com"]

[Event "Titled Tuesday Blitz November 29 Early 2022"]
[White "Goltsev, Dmitry"]
[Black "Zhigalko, Sergei"]
[WhiteFideId "24176710"]
[BlackFideId "13502956"]
[WhiteElo "2289"]
[BlackElo "2662"]
[Result "1/2-1/2"]
[Round "04"]
[TimeControl "180+1"]
[Date "2022.11.30"]
[WhiteClock "0:00:23"]
[BlackClock "0:00:07"]

1. e4 {[%clk 0:03:00]}  c5 {[%clk 0:02:59]} 2. Nf3 {[%clk 0:03:01]}  Nc6 {[%clk 0:02:59]} 3. d4 {[%clk 0:03:01]}  cxd4 {[%clk 0:03:00]} 4. Nxd4 {[%clk 0:03:02]}  Nf6 {[%clk 0:03:00]} 5. Nc3 {[%clk 0:03:02]}  e5 {[%clk 0:03:00]} 6. Nf5 {[%clk 0:03:02]}  d5 {[%clk 0:03:00]} 7. exd5 {[%clk 0:03:02]}  Bxf5 {[%clk 0:03:00]} 8. dxc6 {[%clk 0:03:02]}  bxc6 {[%clk 0:02:59]} 9. Bd3 {[%clk 0:03:02]}  e4 {[%clk 0:02:56]} 10. Qe2 {[%clk 0:03:02]}  Qe7 {[%clk 0:02:45]} 11. Bc4 {[%clk 0:02:59]}  Qe5 {[%clk 0:02:45]} 12. O-O {[%clk 0:02:42]}  Bd6 {[%clk 0:02:31]} 13. f4 {[%clk 0:02:27]}  Qe7 {[%clk 0:02:20]} 14. h3 {[%clk 0:02:23]}  O-O {[%clk 0:01:55]} 15. Be3 {[%clk 0:02:17]}  h5 {[%clk 0:01:34]} 16. Rad1 {[%clk 0:02:08]}  Rfd8 {[%clk 0:01:29]} 17. Qf2 {[%clk 0:02:07]}  Bb4 {[%clk 0:01:11]} 18. Ne2 {[%clk 0:02:01]}  Be6 {[%clk 0:01:06]} 19. Bb3 {[%clk 0:01:48]}  Bxb3 {[%clk 0:00:54]} 20. axb3 {[%clk 0:01:49]}  Nd5 {[%clk 0:00:54]} 21. Kh2 {[%clk 0:01:34]}  Nxe3 {[%clk 0:00:46]} 22. Qxe3 {[%clk 0:01:35]}  Bc5 {[%clk 0:00:44]} 23. Nd4 {[%clk 0:01:20]}  Qf6 {[%clk 0:00:20]} 24. c3 {[%clk 0:01:15]}  Bxd4 {[%clk 0:00:21]} 25. cxd4 {[%clk 0:01:03]}  Re8 {[%clk 0:00:18]} 26. Rc1 {[%clk 0:01:02]}  Rab8 {[%clk 0:00:17]} 27. Rc5 {[%clk 0:01:00]}  Rb4 {[%clk 0:00:15]} 28. Rfc1 {[%clk 0:00:58]}  Qxd4 {[%clk 0:00:11]} 29. Qxd4 {[%clk 0:00:58]}  Rxd4 {[%clk 0:00:12]} 30. Rxc6 {[%clk 0:00:56]}  e3 {[%clk 0:00:05]} 31. Kg3 {[%clk 0:00:56]}  Rb4 {[%clk 0:00:02]} 32. R6c3 {[%clk 0:00:54]}  Ree4 {[%clk 0:00:02]} 33. Re1 {[%clk 0:00:53]}  Rxf4 {[%clk 0:00:02]} 34. Rexe3 {[%clk 0:00:54]}  h4+ {[%clk 0:00:03]} 35. Kh2 {[%clk 0:00:53]}  Rf2 {[%clk 0:00:03]} 36. Rf3 {[%clk 0:00:40]}  Rxb2 {[%clk 0:00:02]} 37. Rc8+ {[%clk 0:00:40]}  Kh7 {[%clk 0:00:03]} 38. Rxf7 {[%clk 0:00:41]}  Rb6 {[%clk 0:00:02]} 39. Rc4 {[%clk 0:00:38]}  R2xb3 {[%clk 0:00:02]} 40. Rxh4+ {[%clk 0:00:37]}  Rh6 {[%clk 0:00:03]} 41. Rxh6+ {[%clk 0:00:37]}  Kxh6 {[%clk 0:00:03]} 42. Rxa7 {[%clk 0:00:38]}  Rb6 {[%clk 0:00:03]} 43. Ra4 {[%clk 0:00:37]}  Kh7 {[%clk 0:00:04]} 44. Kg3 {[%clk 0:00:38]}  Kg8 {[%clk 0:00:04]} 45. Rf4 {[%clk 0:00:38]}  Rb3+ {[%clk 0:00:04]} 46. Rf3 {[%clk 0:00:38]}  Rb2 {[%clk 0:00:05]} 47. Rf2 {[%clk 0:00:37]}  Rb6 {[%clk 0:00:06]} 48. h4 {[%clk 0:00:36]}  Rg6+ {[%clk 0:00:07]} 49. Kh3 {[%clk 0:00:37]}  Ra6 {[%clk 0:00:07]} 50. Rf3 {[%clk 0:00:37]}  Ra5 {[%clk 0:00:06]} 51. g4 {[%clk 0:00:37]}  g6 {[%clk 0:00:05]} 52. Kg3 {[%clk 0:00:35]}  Kg7 {[%clk 0:00:06]} 53. Re3 {[%clk 0:00:36]}  Ra4 {[%clk 0:00:06]} 54. Kf3 {[%clk 0:00:36]}  Kf6 {[%clk 0:00:06]} 55. Re4 {[%clk 0:00:33]}  Ra1 {[%clk 0:00:06]} 56. Rf4+ {[%clk 0:00:32]}  Kg7 {[%clk 0:00:06]} 57. Rb4 {[%clk 0:00:32]}  Rf1+ {[%clk 0:00:06]} 58. Kg3 {[%clk 0:00:23]}  Rg1+ {[%clk 0:00:06]} 59. Kf3 {[%clk 0:00:22]}  Rf1+ {[%clk 0:00:06]} 60. Kg3 {[%clk 0:00:23]}  Rg1+ {[%clk 0:00:06]} 61. Kf3 {[%clk 0:00:23]}  Rf1+ {[%clk 0:00:07]} 1/2-1/2


[Site "https://www.chess.com"]

[Event "Titled Tuesday Blitz November 29 Early 2022"]
[White "Gorodetzky, David"]
[Black "Fedoseev, Vladimir"]
[WhiteFideId "2813416"]
[BlackFideId "24130737"]
[WhiteElo "2497"]
[BlackElo "2726"]
[Result "1-0"]
[Round "04"]
[TimeControl "180+1"]
[Date "2022.11.30"]
[WhiteClock "0:00:16"]
[BlackClock "0:00:02"]

1. e4 {[%clk 0:02:59]}  c5 {[%clk 0:02:58]} 2. c3 {[%clk 0:02:59]}  d5 {[%clk 0:02:57]} 3. exd5 {[%clk 0:02:58]}  Nf6 {[%clk 0:02:57]} 4. d4 {[%clk 0:02:55]}  cxd4 {[%clk 0:02:54]} 5. Qa4+ {[%clk 0:02:54]}  Bd7 {[%clk 0:02:47]} 6. Qxd4 {[%clk 0:02:54]}  Qa5 {[%clk 0:02:48]} 7. Bc4 {[%clk 0:02:48]}  Na6 {[%clk 0:02:29]} 8. Nf3 {[%clk 0:02:45]}  Nc7 {[%clk 0:02:28]} 9. Ne5 {[%clk 0:02:30]}  Nb5 {[%clk 0:01:34]} 10. Bxb5 {[%clk 0:01:53]}  Bxb5 {[%clk 0:01:31]} 11. Bd2 {[%clk 0:01:53]}  Qb6 {[%clk 0:01:17]} 12. Qxb6 {[%clk 0:01:45]}  axb6 {[%clk 0:01:18]} 13. c4 {[%clk 0:01:45]}  Ba6 {[%clk 0:01:16]} 14. Nc3 {[%clk 0:01:36]}  Rc8 {[%clk 0:01:14]} 15. Rc1 {[%clk 0:01:21]}  e6 {[%clk 0:00:51]} 16. dxe6 {[%clk 0:01:17]}  fxe6 {[%clk 0:00:52]} 17. b3 {[%clk 0:01:08]}  Bd6 {[%clk 0:00:45]} 18. Nf3 {[%clk 0:01:03]}  O-O {[%clk 0:00:42]} 19. O-O {[%clk 0:01:03]}  e5 {[%clk 0:00:27]} 20. Be3 {[%clk 0:00:55]}  Ba3 {[%clk 0:00:21]} 21. Rcd1 {[%clk 0:00:55]}  b5 {[%clk 0:00:19]} 22. Nxb5 {[%clk 0:00:55]}  Bxb5 {[%clk 0:00:18]} 23. cxb5 {[%clk 0:00:55]}  e4 {[%clk 0:00:18]} 24. Nd2 {[%clk 0:00:54]}  Rc2 {[%clk 0:00:19]} 25. Nc4 {[%clk 0:00:50]}  Be7 {[%clk 0:00:16]} 26. a4 {[%clk 0:00:51]}  Rc3 {[%clk 0:00:16]} 27. Na5 {[%clk 0:00:44]}  Ng4 {[%clk 0:00:13]} 28. Bd4 {[%clk 0:00:41]}  Rd3 {[%clk 0:00:13]} 29. h3 {[%clk 0:00:36]}  Nh6 {[%clk 0:00:08]} 30. Nxb7 {[%clk 0:00:32]}  Rxb3 {[%clk 0:00:06]} 31. Bc5 {[%clk 0:00:24]}  Bxc5 {[%clk 0:00:05]} 32. Nxc5 {[%clk 0:00:25]}  Rb4 {[%clk 0:00:05]} 33. Rfe1 {[%clk 0:00:22]}  Rc8 {[%clk 0:00:02]} 34. Rd5 {[%clk 0:00:16]} 1-0


[Site "https://www.chess.com"]

[Event "Titled Tuesday Blitz November 29 Early 2022"]
[White "Grabinsky, Vladimir"]
[Black "Putri, Regita Desyari"]
[WhiteFideId "14107074"]
[BlackFideId "7109083"]
[WhiteElo "2198"]
[BlackElo "1930"]
[Result "0-1"]
[Round "04"]
[TimeControl "180+1"]
[Date "2022.11.30"]
[WhiteClock "0:00:03"]
[BlackClock "0:01:20"]

1. e4 {[%clk 0:02:55]}  c5 {[%clk 0:02:57]} 2. Nc3 {[%clk 0:02:51]}  a6 {[%clk 0:02:57]} 3. g3 {[%clk 0:02:51]}  b5 {[%clk 0:02:55]} 4. Bg2 {[%clk 0:02:52]}  Bb7 {[%clk 0:02:56]} 5. f4 {[%clk 0:02:51]}  e6 {[%clk 0:02:56]} 6. d3 {[%clk 0:02:48]}  Ne7 {[%clk 0:02:56]} 7. Nf3 {[%clk 0:02:48]}  d5 {[%clk 0:02:56]} 8. O-O {[%clk 0:02:43]}  Nd7 {[%clk 0:02:49]} 9. f5 {[%clk 0:02:29]}  b4 {[%clk 0:02:46]} 10. fxe6 {[%clk 0:02:27]}  fxe6 {[%clk 0:02:45]} 11. Ne2 {[%clk 0:02:14]}  dxe4 {[%clk 0:02:33]} 12. Ng5 {[%clk 0:02:14]}  Qb6 {[%clk 0:02:32]} 13. Nf4 {[%clk 0:01:47]}  e5 {[%clk 0:02:14]} 14. Nfe6 {[%clk 0:01:40]}  h6 {[%clk 0:02:06]} 15. Nxf8 {[%clk 0:00:27]}  Rxf8 {[%clk 0:02:03]} 16. Rxf8+ {[%clk 0:00:22]}  Nxf8 {[%clk 0:02:03]} 17. Nxe4 {[%clk 0:00:21]}  O-O-O {[%clk 0:02:01]} 18. Qg4+ {[%clk 0:00:18]}  Kb8 {[%clk 0:01:58]} 19. Be3 {[%clk 0:00:18]}  Ne6 {[%clk 0:01:55]} 20. Rf1 {[%clk 0:00:13]}  Nd5 {[%clk 0:01:52]} 21. Rf7 {[%clk 0:00:12]}  Nxe3 {[%clk 0:01:47]} 22. Qg6 {[%clk 0:00:09]}  Nxg2 {[%clk 0:01:45]} 23. Kxg2 {[%clk 0:00:09]}  Ka7 {[%clk 0:01:36]} 24. Qf5 {[%clk 0:00:06]}  Ng5 {[%clk 0:01:33]} 25. Rxg7 {[%clk 0:00:05]}  Nxe4 {[%clk 0:01:32]} 26. dxe4 {[%clk 0:00:05]}  Rd2+ {[%clk 0:01:32]} 27. Kh3 {[%clk 0:00:05]}  c4 {[%clk 0:01:21]} 28. Rg6 {[%clk 0:00:03]}  Qf2 {[%clk 0:01:20]} 0-1


[Site "https://www.chess.com"]

[Event "Titled Tuesday Blitz November 29 Early 2022"]
[White "Hambleton, Aman"]
[Black "Silva, Miguel Antonio Neto"]
[WhiteFideId "2606577"]
[BlackFideId "1911929"]
[WhiteElo "2538"]
[BlackElo "2223"]
[Result "1-0"]
[Round "04"]
[TimeControl "180+1"]
[Date "2022.11.30"]
[WhiteClock "0:00:06"]
[BlackClock "0:00:19"]

1. d4 {[%clk 0:03:00]}  Nf6 {[%clk 0:02:59]} 2. c4 {[%clk 0:02:57]}  e6 {[%clk 0:02:58]} 3. Nc3 {[%clk 0:02:57]}  Bb4 {[%clk 0:02:58]} 4. Qc2 {[%clk 0:02:55]}  d5 {[%clk 0:02:53]} 5. cxd5 {[%clk 0:02:50]}  exd5 {[%clk 0:02:52]} 6. Bg5 {[%clk 0:02:45]}  c6 {[%clk 0:02:49]} 7. e3 {[%clk 0:02:37]}  h6 {[%clk 0:02:48]} 8. Bh4 {[%clk 0:02:25]}  Nbd7 {[%clk 0:02:46]} 9. Bd3 {[%clk 0:02:22]}  Qe7 {[%clk 0:02:31]} 10. Ne2 {[%clk 0:02:14]}  Bd6 {[%clk 0:02:00]} 11. Bg3 {[%clk 0:00:52]}  O-O {[%clk 0:01:56]} 12. O-O {[%clk 0:00:50]}  Re8 {[%clk 0:01:49]} 13. Rae1 {[%clk 0:00:36]}  Nf8 {[%clk 0:01:26]} 14. h3 {[%clk 0:00:27]}  Be6 {[%clk 0:01:11]} 15. f3 {[%clk 0:00:16]}  c5 {[%clk 0:01:06]} 16. Bxd6 {[%clk 0:00:14]}  Qxd6 {[%clk 0:01:05]} 17. Nb5 {[%clk 0:00:11]}  Qe7 {[%clk 0:00:59]} 18. Qxc5 {[%clk 0:00:11]}  Qd8 {[%clk 0:00:56]} 19. Qc7 {[%clk 0:00:07]}  a6 {[%clk 0:00:51]} 20. Qxd8 {[%clk 0:00:08]}  Rexd8 {[%clk 0:00:51]} 21. Nbc3 {[%clk 0:00:06]}  Rac8 {[%clk 0:00:49]} 22. Rc1 {[%clk 0:00:07]}  N8d7 {[%clk 0:00:49]} 23. Kf2 {[%clk 0:00:07]}  Nb6 {[%clk 0:00:48]} 24. Rc2 {[%clk 0:00:08]}  g6 {[%clk 0:00:47]} 25. Rfc1 {[%clk 0:00:08]}  Kg7 {[%clk 0:00:47]} 26. h4 {[%clk 0:00:07]}  h5 {[%clk 0:00:47]} 27. Nf4 {[%clk 0:00:06]}  Ne8 {[%clk 0:00:38]} 28. b3 {[%clk 0:00:04]}  Nd6 {[%clk 0:00:38]} 29. Ke1 {[%clk 0:00:05]}  Kh6 {[%clk 0:00:34]} 30. Kd2 {[%clk 0:00:04]}  Re8 {[%clk 0:00:32]} 31. a4 {[%clk 0:00:04]}  a5 {[%clk 0:00:21]} 32. Nb5 {[%clk 0:00:05]}  Nxb5 {[%clk 0:00:21]} 33. Bxb5 {[%clk 0:00:06]}  Rxc2+ {[%clk 0:00:20]} 34. Rxc2 {[%clk 0:00:07]}  f6 {[%clk 0:00:19]} 35. Bxe8 {[%clk 0:00:06]} 1-0


[Site "https://www.chess.com"]

[Event "Titled Tuesday Blitz November 29 Early 2022"]
[White "Ibarra Jerez, Jose Carlos"]
[Black "Dilanyan, Grigor"]
[WhiteFideId "2226332"]
[BlackFideId "13303570"]
[WhiteElo "2638"]
[BlackElo "2229"]
[Result "1/2-1/2"]
[Round "04"]
[TimeControl "180+1"]
[Date "2022.11.30"]
[WhiteClock "0:00:04"]
[BlackClock "0:00:14"]

1. e4 {[%clk 0:03:00]}  e5 {[%clk 0:02:59]} 2. Nf3 {[%clk 0:03:01]}  Nc6 {[%clk 0:02:59]} 3. Bb5 {[%clk 0:03:00]}  a6 {[%clk 0:02:59]} 4. Bxc6 {[%clk 0:03:00]}  dxc6 {[%clk 0:02:59]} 5. O-O {[%clk 0:03:01]}  Ne7 {[%clk 0:02:59]} 6. Nxe5 {[%clk 0:03:01]}  Qd4 {[%clk 0:02:59]} 7. Qh5 {[%clk 0:03:01]}  g6 {[%clk 0:03:00]} 8. Qg5 {[%clk 0:03:01]}  Bg7 {[%clk 0:02:57]} 9. Nf3 {[%clk 0:02:55]}  Qxe4 {[%clk 0:02:57]} 10. Re1 {[%clk 0:02:44]}  Qb4 {[%clk 0:02:55]} 11. b3 {[%clk 0:02:07]}  h6 {[%clk 0:02:21]} 12. Qe3 {[%clk 0:02:01]}  Be6 {[%clk 0:02:18]} 13. Ba3 {[%clk 0:01:57]}  Nd5 {[%clk 0:01:44]} 14. Bxb4 {[%clk 0:01:10]}  Nxe3 {[%clk 0:01:44]} 15. fxe3 {[%clk 0:01:10]}  Bxa1 {[%clk 0:01:44]} 16. c3 {[%clk 0:01:11]}  Bb2 {[%clk 0:01:28]} 17. e4 {[%clk 0:00:41]}  b6 {[%clk 0:01:22]} 18. d4 {[%clk 0:00:29]}  a5 {[%clk 0:01:14]} 19. Ba3 {[%clk 0:00:29]}  Bxa3 {[%clk 0:01:14]} 20. Nxa3 {[%clk 0:00:30]}  a4 {[%clk 0:01:15]} 21. b4 {[%clk 0:00:30]}  Bxa2 {[%clk 0:01:14]} 22. Ne5 {[%clk 0:00:30]}  c5 {[%clk 0:00:57]} 23. Nb5 {[%clk 0:00:26]}  Ke7 {[%clk 0:00:36]} 24. d5 {[%clk 0:00:15]}  cxb4 {[%clk 0:00:33]} 25. cxb4 {[%clk 0:00:15]}  Kf6 {[%clk 0:00:21]} 26. Nc6 {[%clk 0:00:09]}  Rac8 {[%clk 0:00:14]} 27. e5+ {[%clk 0:00:09]}  Kg7 {[%clk 0:00:14]} 28. Nc3 {[%clk 0:00:09]}  Bb3 {[%clk 0:00:14]} 29. Nd4 {[%clk 0:00:08]}  Rhd8 {[%clk 0:00:13]} 30. e6 {[%clk 0:00:08]}  c5 {[%clk 0:00:12]} 31. Nc6 {[%clk 0:00:06]}  Rxd5 {[%clk 0:00:11]} 32. Nxd5 {[%clk 0:00:05]}  Bxd5 {[%clk 0:00:10]} 33. Ne7 {[%clk 0:00:05]}  Bxe6 {[%clk 0:00:08]} 34. Nxc8 {[%clk 0:00:06]}  Bxc8 {[%clk 0:00:09]} 35. bxc5 {[%clk 0:00:06]}  bxc5 {[%clk 0:00:09]} 36. Rc1 {[%clk 0:00:06]}  a3 {[%clk 0:00:09]} 37. Ra1 {[%clk 0:00:06]}  Be6 {[%clk 0:00:08]} 38. Rxa3 {[%clk 0:00:06]}  c4 {[%clk 0:00:08]} 39. Kf2 {[%clk 0:00:07]}  h5 {[%clk 0:00:09]} 40. h4 {[%clk 0:00:06]}  Kf6 {[%clk 0:00:10]} 41. Ra5 {[%clk 0:00:07]}  Ke7 {[%clk 0:00:09]} 42. Ke3 {[%clk 0:00:07]}  Kd6 {[%clk 0:00:10]} 43. Kd4 {[%clk 0:00:08]}  Ke7 {[%clk 0:00:10]} 44. Ke5 {[%clk 0:00:08]}  Kf8 {[%clk 0:00:10]} 45. Kf6 {[%clk 0:00:08]}  Ke8 {[%clk 0:00:11]} 46. Rc5 {[%clk 0:00:07]}  Kd7 {[%clk 0:00:09]} 47. Ke5 {[%clk 0:00:07]}  Kd8 {[%clk 0:00:09]} 48. Kd6 {[%clk 0:00:08]}  Ke8 {[%clk 0:00:09]} 49. g3 {[%clk 0:00:06]}  Kf8 {[%clk 0:00:09]} 50. Ke5 {[%clk 0:00:07]}  Kg7 {[%clk 0:00:09]} 51. Rc7 {[%clk 0:00:07]}  Kh6 {[%clk 0:00:09]} 52. Kf6 {[%clk 0:00:07]}  Kh7 {[%clk 0:00:09]} 53. Re7 {[%clk 0:00:06]}  Bd5 {[%clk 0:00:09]} 54. Re8 {[%clk 0:00:06]}  Be6 {[%clk 0:00:09]} 55. Re7 {[%clk 0:00:06]}  Bd5 {[%clk 0:00:10]} 56. Rc7 {[%clk 0:00:06]}  Be6 {[%clk 0:00:10]} 57. Rb7 {[%clk 0:00:07]}  Kg8 {[%clk 0:00:09]} 58. Rb8+ {[%clk 0:00:07]}  Kh7 {[%clk 0:00:10]} 59. Ra8 {[%clk 0:00:07]}  Bd5 {[%clk 0:00:10]} 60. Ra7 {[%clk 0:00:07]}  Be6 {[%clk 0:00:11]} 61. Rc7 {[%clk 0:00:05]}  Bd5 {[%clk 0:00:11]} 62. Ke5 {[%clk 0:00:05]}  Be6 {[%clk 0:00:10]} 63. Rc5 {[%clk 0:00:04]}  Kg7 {[%clk 0:00:10]} 64. Rc6 {[%clk 0:00:05]}  g5 {[%clk 0:00:10]} 65. hxg5 {[%clk 0:00:05]}  Kg6 {[%clk 0:00:11]} 66. Kf4 {[%clk 0:00:05]}  Kg7 {[%clk 0:00:12]} 67. Rc5 {[%clk 0:00:05]}  Kg6 {[%clk 0:00:12]} 68. Re5 {[%clk 0:00:05]}  Kg7 {[%clk 0:00:12]} 69. Re2 {[%clk 0:00:06]}  Kg6 {[%clk 0:00:13]} 70. Rf2 {[%clk 0:00:06]}  Bd5 {[%clk 0:00:13]} 71. Rd2 {[%clk 0:00:06]}  Be6 {[%clk 0:00:13]} 72. Rd6 {[%clk 0:00:07]}  Kg7 {[%clk 0:00:13]} 73. Ke5 {[%clk 0:00:07]}  Kg6 {[%clk 0:00:14]} 74. Kf4 {[%clk 0:00:07]}  Kg7 {[%clk 0:00:14]} 75. Rc6 {[%clk 0:00:07]}  Kg6 {[%clk 0:00:15]} 76. Rc5 {[%clk 0:00:08]}  Kg7 {[%clk 0:00:15]} 77. Ke3 {[%clk 0:00:08]}  Kg6 {[%clk 0:00:16]} 78. Kd4 {[%clk 0:00:09]}  Kg7 {[%clk 0:00:15]} 79. Kc3 {[%clk 0:00:09]}  Kg6 {[%clk 0:00:16]} 80. Re5 {[%clk 0:00:09]}  Kg7 {[%clk 0:00:16]} 81. Kb4 {[%clk 0:00:10]}  Kg6 {[%clk 0:00:16]} 82. Kc5 {[%clk 0:00:10]}  Kg7 {[%clk 0:00:16]} 83. Kd6 {[%clk 0:00:09]}  Kg6 {[%clk 0:00:16]} 84. Rc5 {[%clk 0:00:09]}  Kg7 {[%clk 0:00:14]} 85. Ke7 {[%clk 0:00:10]}  Kg6 {[%clk 0:00:15]} 86. Kf8 {[%clk 0:00:10]}  c3 {[%clk 0:00:15]} 87. Ke7 {[%clk 0:00:06]}  c2 {[%clk 0:00:15]} 88. Rxc2 {[%clk 0:00:06]}  Kxg5 {[%clk 0:00:15]} 89. Rh2 {[%clk 0:00:06]}  Kg4 {[%clk 0:00:16]} 90. Rh4+ {[%clk 0:00:06]}  Kg5 {[%clk 0:00:16]} 91. Kd6 {[%clk 0:00:06]}  Bg4 {[%clk 0:00:14]} 92. Ke5 {[%clk 0:00:06]}  f6+ {[%clk 0:00:14]} 93. Ke4 {[%clk 0:00:06]}  f5+ {[%clk 0:00:14]} 94. Ke5 {[%clk 0:00:06]}  f4 {[%clk 0:00:14]} 95. Rxh5+ {[%clk 0:00:02]}  Bxh5 {[%clk 0:00:11]} 96. gxf4+ {[%clk 0:00:02]}  Kg6 {[%clk 0:00:12]} 97. Ke6 {[%clk 0:00:03]}  Kg7 {[%clk 0:00:12]} 98. f5 {[%clk 0:00:04]}  Bf7+ {[%clk 0:00:13]} 99. Ke7 {[%clk 0:00:04]}  Bg8 {[%clk 0:00:13]} 100. f6+ {[%clk 0:00:04]}  Kg6 {[%clk 0:00:13]} 101. Kf8 {[%clk 0:00:03]}  Bf7 {[%clk 0:00:14]} 102. Ke7 {[%clk 0:00:04]}  Bg8 {[%clk 0:00:13]} 103. f7 {[%clk 0:00:04]}  Bxf7 {[%clk 0:00:14]} 1/2-1/2


[Site "https://www.chess.com"]

[Event "Titled Tuesday Blitz November 29 Early 2022"]
[White "Iinuma, Paul Y"]
[Black "Postnikov, Daniil"]
[WhiteFideId "2031809"]
[BlackFideId "4166329"]
[WhiteElo "2066"]
[BlackElo "2261"]
[Result "0-1"]
[Round "04"]
[TimeControl "180+1"]
[Date "2022.11.30"]
[WhiteClock "0:00:07"]
[BlackClock "0:00:06"]

1. d4 {[%clk 0:02:59]}  Nf6 {[%clk 0:02:59]} 2. g4 {[%clk 0:02:59]}  Nxg4 {[%clk 0:02:53]} 3. e4 {[%clk 0:02:59]}  d5 {[%clk 0:02:53]} 4. e5 {[%clk 0:02:58]}  g6 {[%clk 0:02:46]} 5. h3 {[%clk 0:02:54]}  Nh6 {[%clk 0:02:46]} 6. Nf3 {[%clk 0:02:53]}  Nf5 {[%clk 0:02:27]} 7. Bg5 {[%clk 0:02:49]}  Bg7 {[%clk 0:02:26]} 8. Bd3 {[%clk 0:02:48]}  O-O {[%clk 0:02:26]} 9. Qd2 {[%clk 0:02:47]}  Re8 {[%clk 0:02:20]} 10. Qf4 {[%clk 0:02:34]}  c5 {[%clk 0:02:00]} 11. c3 {[%clk 0:02:34]}  Nc6 {[%clk 0:01:57]} 12. dxc5 {[%clk 0:02:31]}  Qc7 {[%clk 0:01:57]} 13. Bxf5 {[%clk 0:02:29]}  Bxf5 {[%clk 0:01:56]} 14. Bh6 {[%clk 0:02:19]}  Nxe5 {[%clk 0:01:50]} 15. Nxe5 {[%clk 0:02:18]}  Bxe5 {[%clk 0:01:49]} 16. Qe3 {[%clk 0:02:17]}  Rac8 {[%clk 0:01:43]} 17. Nd2 {[%clk 0:02:17]}  Bf6 {[%clk 0:01:41]} 18. b4 {[%clk 0:02:13]}  e5 {[%clk 0:01:38]} 19. Rd1 {[%clk 0:02:10]}  d4 {[%clk 0:01:36]} 20. Qf3 {[%clk 0:02:09]}  e4 {[%clk 0:01:30]} 21. Qg3 {[%clk 0:02:08]}  Be5 {[%clk 0:01:30]} 22. Qh4 {[%clk 0:02:07]}  dxc3 {[%clk 0:01:30]} 23. Nc4 {[%clk 0:02:07]}  c2 {[%clk 0:01:30]} 24. Rc1 {[%clk 0:02:07]}  Bc3+ {[%clk 0:01:29]} 25. Kf1 {[%clk 0:02:05]}  e3 {[%clk 0:01:30]} 26. Nxe3 {[%clk 0:02:01]}  Bd3+ {[%clk 0:01:29]} 27. Kg1 {[%clk 0:02:00]}  Bd2 {[%clk 0:01:29]} 28. Nd5 {[%clk 0:01:57]}  Bxc1 {[%clk 0:01:23]} 29. Nf6+ {[%clk 0:01:26]}  Kh8 {[%clk 0:01:21]} 30. Bxc1 {[%clk 0:01:27]}  h5 {[%clk 0:00:51]} 31. Qg5 {[%clk 0:01:10]}  Re1+ {[%clk 0:00:32]} 32. Kg2 {[%clk 0:01:10]}  Qc6+ {[%clk 0:00:32]} 33. f3 {[%clk 0:01:08]}  Re2+ {[%clk 0:00:30]} 34. Kg3 {[%clk 0:01:08]}  Kg7 {[%clk 0:00:28]} 35. Nxh5+ {[%clk 0:00:54]}  Kf8 {[%clk 0:00:26]} 36. Bf4 {[%clk 0:00:40]}  Re6 {[%clk 0:00:11]} 37. Qh6+ {[%clk 0:00:33]}  Ke7 {[%clk 0:00:10]} 38. Bg5+ {[%clk 0:00:27]}  Kd7 {[%clk 0:00:10]} 39. Qg7 {[%clk 0:00:27]}  Qd5 {[%clk 0:00:07]} 40. Qxf7+ {[%clk 0:00:21]}  Kc6 {[%clk 0:00:08]} 41. h4 {[%clk 0:00:09]}  gxh5 {[%clk 0:00:07]} 42. Rh2 {[%clk 0:00:09]}  c1=Q {[%clk 0:00:06]} 43. Bxc1 {[%clk 0:00:08]}  Rg6+ {[%clk 0:00:06]} 44. Bg5 {[%clk 0:00:07]}  Qxf7 {[%clk 0:00:06]} 0-1


[Site "https://www.chess.com"]